[Event "SVK Extraliga 2019-20"]
[Site "Slovakia"]
[Date "2020.01.19"]
[Round "6.5"]
[White "Cibickova, Zuzana"]
[Black "Lintner, Igor"]
[Result "1/2-1/2"]
[ECO "B41"]
[WhiteElo "2254"]
[BlackElo "2204"]
[Annotator "NA"]
[PlyCount "105"]
[EventDate "2019.10.19"]
[EventType "team-tourn"]
[EventCountry "SVK"]
[SourceTitle "playchess.com"]
[Source "ChessBase"]
[SourceQuality "1"]
[WhiteTeam "Podhajska"]
[BlackTeam "Bratislava"]
[TimeControl "40/5400+30:1800+30"]

1. e4 {[%emt 0:03:39]} c5 {[%emt 0:00:00]} 2. Nf3 {[%emt 0:00:05]} e6 {[%emt 0:00:02]} 3. d4 {[%emt 0:00:05]} cxd4 {[%emt 0:00:02]} 4. Nxd4 {[%emt 0:00:10]} a6 {[%emt 0:00:01]} 5. c4 {[%emt 0:11:13]} b6 {[%emt 0:00:07]} 6. Nc3 {[%emt 0:02:35]} Bb7 {[%emt 0:00:10]} 7. Bd3 {[%emt 0:02:17]} d6 {[%emt 0:00:35]} 8. O-O {[%emt 0:00:13]} Nf6 {[%emt 0:00:15]} 9. Qe2 {[%emt 0:01:25]} Nbd7 {[%emt 0:02:36]} 10. f4 {[%emt 0:02:16]} Qc7 {[%emt 0:02:21]} 11. Kh1 {[%emt 0:04:03]} h5 {[%emt 0:05:37]} 12. f5 {[%emt 0:14:40]} e5 {[%emt 0:04:15]} 13. Nc2 {[%emt 0:00:53]} Nc5 {[%emt 0:10:54]} 14. Ne3 {[%emt 0:09:33]} Rc8 {[%emt 0:05:50]} 15. Ncd5 {[%emt 0:13:00]} Bxd5 {[%emt 0:02:24]} 16. Nxd5 {[%emt 0:03:27]} Nxd5 {[%emt 0:00:22]} 17. cxd5 {[%emt 0:00:08]} Nxd3 {[%emt 0:04:28]} 18. Qxd3 {[%emt 0:00:01]} Qc4 {[%emt 0:00:00]} 19. Qf3 {[%emt 0:02:21]} Be7 {[%emt 0:07:03]} 20. b3 {[%emt 0:01:55]} Qb4 {[%emt 0:06:11]} 21. a3 {[%emt 0:11:07]} Qc3 {[%emt 0:04:03]} 22. Qxc3 {[%emt 0:00:41]} Rc7 23. Qc4 Rxc4 {[%emt 0:00:32]} 24. Rf3 {[%emt 0:00:43]} Rc2 {[%emt 0:04:18]} 25. Be3 {[%emt 0:01:06]} b5 {[%emt 0:08:20]} 26. Rc1 {[%emt 0:07:44]} Rxc1+ {[%emt 0:00:37]} 27. Bxc1 {[%emt 0:00:01]} Kd7 {[%emt 0:01:06]} 28. Rc3 {[%emt 0:03:49]} Rc8 {[%emt 0:01:51]} 29. Rxc8 {[%emt 0:00:29]} Kxc8 {[%emt 0:00:01]} 30. Kg1 {[%emt 0:00:11]} g5 {[%emt 0:00:58]} 31. fxg6 {[%emt 0:02:03]} fxg6 {[%emt 0:00:01]} 32. Kf2 {[%emt 0:00:39]} Kd7 {[%emt 0:00:45]} 33. g4 {[%emt 0:01:34]} Bh4+ {[%emt 0:02:14]} 34. Kf3 {[%emt 0:00:09]} Ke7 {[%emt 0:04:03]} 35. Bd2 {[%emt 0:00:57]} Kd7 {[%emt 0:10:00]} 36. Ba5 {[%emt 0:00:45]} Ke7 {[%emt 0:00:21]} 37. Bb6 {[%emt 0:00:11]} Kd7 {[%emt 0:01:03]} 38. Be3 {[%emt 0:00:30]} Ke7 {[%emt 0:00:30]} 39. Ba7 {[%emt 0:01:35]} Kd7 {[%emt 0:00:03]} 40. Bg1 {[%emt 0:00:17]} Ke7 {[%emt 0:00:05]} 41. Bb6 {[%emt 0:31:04]} Kd7 {[%emt 0:30:01]} 42. Ba7 {[%emt 0:00:00]} Ke7 {[%emt 0:00:00]} 43. Be3 {[%emt 0:00:00]} Kd7 {[%emt 0:00:00]} 44. gxh5 {[%emt 0:00:00]} gxh5 {[%emt 0:00:00]} 45. Kg2 {[%emt 0:00:00]} Ke8 {[%emt 0:00:00]} 46. Bb6 {[%emt 0:00:00]} Be7 {[%emt 0:00:00]} 47. Kh3 {[%emt 0:00:00]} Kf7 {[%emt 0:00:00]} 48. Bc7 {[%emt 0:00:00]} Kg6 {[%emt 0:00:00]} 49. Kg3 {[%emt 0:00:00]} Kf7 {[%emt 0:00:00]} 50. Bb8 {[%emt 0:00:00]} Kg6 {[%emt 0:00:00]} 51. Kf3 {[%emt 0:00:00]} Kf7 {[%emt 0:00:00]} 52. Bc7 {[%emt 0:00:00]} Ke8 {[%emt 0:00:00]} 53. Kg2 {[%emt 0:00:00]} 1/2-1/2

[Event "SVK Extraliga 2019-20"]
[Site "Slovakia"]
[Date "2020.01.20"]
[Round "6.6"]
[White "Maslik, Miroslav"]
[Black "Druska, Juraj"]
[Result "0-1"]
[ECO "A45"]
[WhiteElo "2358"]
[BlackElo "2501"]
[Annotator "ChessBase"]
[PlyCount "94"]
[EventDate "2019.10.19"]
[EventType "team-tourn"]
[EventCountry "SVK"]
[SourceTitle "playchess.com"]
[Source "ChessBase"]
[SourceQuality "1"]
[WhiteTeam "Modra"]
[BlackTeam "Zilina"]
[WhiteTeamCountry "SVK"]
[BlackTeamCountry "SVK"]
[TimeControl "40/5400+30:1800+30"]

1. d4 {[%emt 0:00:00]} Nf6 {[%emt 0:00:00]} 2. Bg5 {[%emt 0:00:00]} e6 {[%emt 0:01:03]} 3. e4 {[%emt 0:00:39]} h6 {[%emt 0:00:08]} 4. Bxf6 {[%emt 0:00:13]} Qxf6 {[%emt 0:00:03]} 5. c3 {[%emt 0:02:13]} d6 {[%emt 0:01:15]} 6. Nd2 {[%emt 0:00:50]} e5 {[%emt 0:02:22]} 7. Ngf3 {[%emt 0:01:22]} g6 {[%emt 0:01:30]} 8. Bc4 {[%emt 0:05:54]} Bg7 {[%emt 0:00:45]} 9. a4 {[%emt 0:05:37]} O-O {[%emt 0:14:20]} 10. a5 {[%emt 0:01:09]} exd4 {[%emt 0:07:30]} 11. Nxd4 {[%emt 0:01:35]} Nc6 {[%emt 0:00:20]} 12. Nxc6 {[%emt 0:03:43]} bxc6 {[%emt 0:00:09]} 13. O-O {[%emt 0:00:07]} Rb8 {[%emt 0:02:11]} 14. Qc2 {[%emt 0:01:54]} Be6 {[%emt 0:00:28]} 15. Bxe6 {[%emt 0:07:39]} Qxe6 {[%emt 0:00:26]} 16. Ra4 {[%emt 0:11:05]} Rb5 {[%emt 0:01:07]} 17. b3 {[%emt 0:05:36]} Rfb8 {[%emt 0:04:39]} 18. Qd3 {[%emt 0:08:02]} Qe5 {[%emt 0:19:54]} 19. Rc4 {[%emt 0:11:00]} Rc5 {[%emt 0:02:44]} 20. Nf3 {[%emt 0:03:42]} Qh5 {[%emt 0:00:36]} 21. b4 {[%emt 0:00:57]} Rxc4 {[%emt 0:00:36]} 22. Qxc4 {[%emt 0:00:01]} Qb5 {[%emt 0:00:18]} 23. Qxb5 {[%emt 0:01:06]} Rxb5 {[%emt 0:00:16]} 24. Rc1 {[%emt 0:00:44]} c5 {[%emt 0:00:43]} 25. Kf1 {[%emt 0:00:45]} Kf8 {[%emt 0:07:31]} 26. Ke2 {[%emt 0:02:47]} Ke7 {[%emt 0:01:04]} 27. Kd3 {[%emt 0:03:09]} Kd7 {[%emt 0:00:09]} 28. Kc4 {[%emt 0:07:16]} a6 {[%emt 0:00:51]} 29. Kb3 {[%emt 0:03:52]} cxb4 {[%emt 0:01:44]} 30. cxb4 {[%emt 0:00:02]} c5 {[%emt 0:00:07]} 31. Rc4 {[%emt 0:00:21]} cxb4 {[%emt 0:00:10]} 32. Rxb4 {[%emt 0:00:09]} Rxa5 {[%emt 0:00:07]} 33. Rb7+ {[%emt 0:04:13]} Ke6 {[%emt 0:00:17]} 34. Rb4 {[%emt 0:01:43]} Ra1 {[%emt 0:01:56]} 35. Nd4+ {[%emt 0:02:20]} Bxd4 {[%emt 0:01:28]} 36. Rxd4 {[%emt 0:00:01]} Rh1 {[%emt 0:01:02]} 37. Rd2 {[%emt 0:01:07]} Rxh2 {[%emt 0:00:11]} 38. g3 {[%emt 0:00:30]} Rh1 {[%emt 0:01:08]} 39. Ra2 {[%emt 0:00:00]} Re1 {[%emt 0:00:24]} 40. Rxa6 {[%emt 0:00:01]} Re2 {[%emt 0:01:51]} 41. Kc4 {[%emt 0:30:32]} Rxf2 {[%emt 0:31:37]} 42. Kd4 {[%emt 0:00:31]} Rf3 {[%emt 0:02:24]} 43. e5 {[%emt 0:00:09]} Rxg3 {[%emt 0:00:06]} 44. Rxd6+ {[%emt 0:00:03]} Ke7 {[%emt 0:00:13]} 45. Rb6 {[%emt 0:00:16]} Rg1 {[%emt 0:01:16]} 46. Rb7+ {[%emt 0:00:20]} Kf8 {[%emt 0:00:07]} 47. e6 {[%emt 0:03:47]} Rd1+ {[%emt 0:00:24]} 0-1

[Event "SVK Extraliga 2019-20"]
[Site "Slovakia"]
[Date "2020.01.19"]
[Round "6.6"]
[White "Zambor, Norbert"]
[Black "Krak, Tomas"]
[Result "1/2-1/2"]
[ECO "B30"]
[WhiteElo "2261"]
[BlackElo "2349"]
[Annotator "NA"]
[PlyCount "31"]
[EventDate "2019.10.19"]
[EventType "team-tourn"]
[EventCountry "SVK"]
[SourceTitle "playchess.com"]
[Source "ChessBase"]
[SourceQuality "1"]
[WhiteTeam "Prakovce"]
[BlackTeam "Snina"]
[TimeControl "40/5400+30:1800+30"]

{[%evp 8,27,42,32767,32767,32767,32767,32767,32767,0,21,18,10,0,-5,-10,-3,0,0,-7,0,-13]} 1. e4 {[%emt 0:00:00]} c5 {[%emt 0:00:00]} 2. Nf3 {[%emt 0:00:00]} Nc6 {[%emt 0:00:10]} 3. Bb5 {[%emt 0:00:15]} Nf6 {[%emt 0:00:19]} 4. Nc3 {[%emt 0:01:12]} g6 {[%emt 0:00:06]} 5. e5 {[%emt 0:06:08]} Ng4 {[%emt 0:00:15]} 6. Bxc6 {[%emt 0:02:09]} dxc6 {[%emt 0:00:06]} 7. h3 {[%emt 0:06:23]} Nh6 {[%emt 0:00:13]} 8. g4 {[%emt 0:02:49]} Bg7 {[%emt 0:00:21]} 9. d3 {[%emt 0:02:39]} O-O {[%emt 0:00:25]} 10. Be3 {[%emt 0:06:57]} f5 {[%emt 0:00:22]} 11. exf6 {[%emt 0:03:30]} exf6 {[%emt 0:00:10]} 12. Qd2 {[%emt 0:00:45]} Nf7 {[%emt 0:00:10]} 13. O-O-O {[%emt 0:02:11]} Qa5 {[%emt 0:00:15]} 14. a3 $11 {[%emt 0:03:41]} Be6 {[%emt 0:17:38]} 15. Ne4 {[%emt 0:04:16]} Qxd2+ {[%emt 0:00:45]} 16. Bxd2 {[%emt 0:14:57]} 1/2-1/2

[Event "SVK Extraliga 2019-20"]
[Site "Slovakia"]
[Date "2020.01.19"]
[Round "6.6"]
[White "Veres, Andrej"]
[Black "Lisko, Frantisek"]
[Result "1-0"]
[ECO "B22"]
[WhiteElo "2237"]
[BlackElo "2256"]
[Annotator "NA"]
[PlyCount "37"]
[EventDate "2019.10.19"]
[EventType "team-tourn"]
[EventCountry "SVK"]
[SourceTitle "playchess.com"]
[Source "ChessBase"]
[SourceQuality "1"]
[WhiteTeam "Dubnica"]
[BlackTeam "Dunajov"]
[TimeControl "40/5400+30:1800+30"]

1. e4 {[%emt 0:00:00]} c5 {[%emt 0:00:00]} 2. c3 {[%emt 0:00:26]} Nf6 {[%emt 0:00:00]} 3. e5 {[%emt 0:01:16]} Nd5 {[%emt 0:00:03]} 4. d4 {[%emt 0:00:28]} cxd4 {[%emt 0:00:14]} 5. Nf3 {[%emt 0:00:57]} e6 {[%emt 0:00:29]} 6. Qxd4 {[%emt 0:11:01]} Nc6 {[%emt 0:00:41]} 7. Qe4 {[%emt 0:05:43]} f5 {[%emt 0:00:29]} 8. exf6 {[%emt 0:03:30]} Nxf6 {[%emt 0:00:22]} 9. Qh4 {[%emt 0:03:51]} d5 {[%emt 0:11:06]} 10. Bd3 {[%emt 0:01:33]} Bd6 {[%emt 0:02:40]} 11. Ng5 {[%emt 0:15:47]} Ne5 {[%emt 0:22:43]} 12. Bc2 {[%emt 0:00:59]} Qe7 {[%emt 0:15:00]} 13. O-O {[%emt 0:14:36]} Bd7 {[%emt 0:19:54]} 14. Re1 {[%emt 0:10:57]} O-O-O {[%emt 0:06:17]} 15. Bf4 {[%emt 0:04:12]} Nfg4 {[%emt 0:02:39]} 16. Qg3 {[%emt 0:06:40]} Bc5 {[%emt 0:08:21]} 17. Nh3 {[%emt 0:01:09]} Rdf8 {[%emt 0:03:21]} 18. Rxe5 {[%emt 0:03:15]} Rxf4 {[%emt 0:03:49]} 19. Qxf4 {[%emt 0:01:01]} 1-0

[Event "SVK Extraliga 2019-20"]
[Site "Slovakia"]
[Date "2020.01.19"]
[Round "6.6"]
[White "Motycakova, Monika"]
[Black "Najgebauer, Szemjon"]
[Result "1/2-1/2"]
[ECO "B33"]
[WhiteElo "2102"]
[BlackElo "2178"]
[Annotator "ChessBase"]
[PlyCount "52"]
[EventDate "2019.10.19"]
[EventType "team-tourn"]
[EventCountry "SVK"]
[SourceTitle "playchess.com"]
[Source "ChessBase"]
[SourceQuality "1"]
[WhiteTeam "Liptovska"]
[BlackTeam "Košice"]
[TimeControl "40/5400+30:1800+30"]

1. e4 {[%emt 0:00:00]} c5 {[%emt 0:00:00]} 2. Nf3 {[%emt 0:00:00]} Nc6 {[%emt 0:00:13]} 3. d4 {[%emt 0:00:27]} cxd4 {[%emt 0:00:43]} 4. Nxd4 {[%emt 0:00:07]} Nf6 {[%emt 0:00:42]} 5. Nc3 {[%emt 0:00:08]} e5 {[%emt 0:02:39]} 6. Ndb5 {[%emt 0:00:16]} d6 {[%emt 0:00:36]} 7. Bg5 {[%emt 0:00:12]} a6 {[%emt 0:01:01]} 8. Na3 {[%emt 0:00:02]} b5 {[%emt 0:00:42]} 9. Bxf6 {[%emt 0:00:30]} gxf6 {[%emt 0:00:31]} 10. Nd5 {[%emt 0:00:07]} Bg7 {[%emt 0:01:08]} 11. Bd3 {[%emt 0:00:34]} Ne7 {[%emt 0:02:17]} 12. Nxe7 {[%emt 0:00:36]} Qxe7 {[%emt 0:00:06]} 13. O-O {[%emt 0:00:20]} O-O {[%emt 0:02:23]} 14. c4 {[%emt 0:01:11]} f5 {[%emt 0:02:30]} 15. Qf3 {[%emt 0:01:06]} d5 {[%emt 0:11:52]} 16. cxd5 {[%emt 0:02:26]} Rb8 {[%emt 0:05:44]} 17. exf5 {[%emt 0:24:37]} e4 {[%emt 0:12:14]} 18. Bxe4 {[%emt 0:02:45]} Bxb2 {[%emt 0:05:05]} 19. Qg3+ {[%emt 0:19:05]} Kh8 {[%emt 0:02:26]} 20. Qxb8 {[%emt 0:01:24]} Bxa1 {[%emt 0:11:36]} 21. Rxa1 {[%emt 0:14:11]} Qxe4 {[%emt 0:01:45]} 22. Qd6 {[%emt 0:13:39]} Rg8 {[%emt 0:07:17]} 23. Qf6+ {[%emt 0:06:00]} Rg7 {[%emt 0:00:14]} 24. Qd8+ {[%emt 0:04:30]} Rg8 {[%emt 0:00:05]} 25. Qf6+ {[%emt 0:00:24]} Rg7 {[%emt 0:00:04]} 26. Qd8+ {[%emt 0:07:32]} Rg8 {[%emt 0:00:10]} 1/2-1/2

[Event "SVK Extraliga 2019-20"]
[Site "Slovakia"]
[Date "2020.01.19"]
[Round "6.6"]
[White "Bochnicka, Vladimir"]
[Black "Gazik, Igor"]
[Result "0-1"]
[ECO "B03"]
[WhiteElo "2094"]
[BlackElo "2256"]
[Annotator "NA"]
[PlyCount "72"]
[EventDate "2019.10.19"]
[EventType "team-tourn"]
[EventCountry "SVK"]
[SourceTitle "playchess.com"]
[Source "ChessBase"]
[SourceQuality "1"]
[WhiteTeam "Bratislava"]
[BlackTeam "Podhajska"]
[TimeControl "40/5400+30:1800+30"]

1. e4 {[%emt 0:00:00]} Nf6 {[%emt 0:02:25]} 2. e5 {[%emt 0:00:00]} Nd5 {[%emt 0:00:05]} 3. d4 {[%emt 0:00:25]} Nb6 {[%emt 0:00:15]} 4. c4 {[%emt 0:00:11]} d6 {[%emt 0:00:12]} 5. exd6 {[%emt 0:00:11]} exd6 {[%emt 0:00:09]} 6. Nc3 {[%emt 0:00:46]} Nc6 {[%emt 0:00:06]} 7. Be3 {[%emt 0:00:47]} Be7 {[%emt 0:00:27]} 8. Rc1 {[%emt 0:02:24]} O-O {[%emt 0:00:55]} 9. b3 {[%emt 0:00:16]} Bg5 {[%emt 0:08:42]} 10. Nf3 {[%emt 0:13:11]} Bxe3 {[%emt 0:12:07]} 11. fxe3 {[%emt 0:00:10]} Re8 {[%emt 0:00:04]} 12. Qd2 {[%emt 0:00:14]} Qe7 {[%emt 0:00:08]} 13. Nd1 {[%emt 0:00:39]} Bg4 {[%emt 0:02:53]} 14. Be2 {[%emt 0:08:06]} d5 {[%emt 0:09:40]} 15. c5 {[%emt 0:00:32]} Nd7 {[%emt 0:00:08]} 16. O-O {[%emt 0:01:16]} Nf6 {[%emt 0:00:06]} 17. b4 {[%emt 0:05:58]} a6 {[%emt 0:03:24]} 18. a4 {[%emt 0:05:16]} Ne4 {[%emt 0:27:03]} 19. Qe1 {[%emt 0:02:05]} Qe6 {[%emt 0:00:40]} 20. b5 {[%emt 0:09:05]} axb5 {[%emt 0:01:29]} 21. axb5 {[%emt 0:00:08]} Ne7 {[%emt 0:04:48]} 22. Ne5 {[%emt 0:03:39]} Bxe2 {[%emt 0:00:57]} 23. Qxe2 {[%emt 0:00:06]} f6 {[%emt 0:00:05]} 24. Nd3 {[%emt 0:00:52]} g5 {[%emt 0:00:55]} 25. N3f2 {[%emt 0:04:56]} Nxf2 {[%emt 0:03:11]} 26. Qxf2 {[%emt 0:00:45]} Kg7 {[%emt 0:00:11]} 27. Nc3 {[%emt 0:01:27]} Ng6 {[%emt 0:04:38]} 28. e4 {[%emt 0:09:28]} dxe4 {[%emt 0:00:57]} 29. Rce1 {[%emt 0:02:15]} e3 {[%emt 0:00:48]} 30. Qf3 {[%emt 0:00:17]} c6 {[%emt 0:04:55]} 31. bxc6 {[%emt 0:03:14]} bxc6 {[%emt 0:00:13]} 32. Ne2 {[%emt 0:02:15]} Nh4 {[%emt 0:05:32]} 33. Qh5 Qe4 {[%emt 0:01:22]} 34. Nf4 {[%emt 0:02:51]} Ra2 {[%emt 0:01:02]} 35. Rf3 {[%emt 0:00:57]} Nxf3+ {[%emt 0:00:42]} 36. gxf3 {[%emt 0:00:15]} Qxf4 0-1

[Event "SVK Extraliga 2019-20"]
[Site "Slovakia"]
[Date "2020.01.19"]
[Round "6.7"]
[White "Farkas, Gabor"]
[Black "Briestensky, Rastislav"]
[Result "1/2-1/2"]
[ECO "B01"]
[WhiteElo "2355"]
[BlackElo "2344"]
[Annotator "ChessBase"]
[PlyCount "193"]
[EventDate "2019.10.19"]
[EventType "team-tourn"]
[EventCountry "SVK"]
[SourceTitle "playchess.com"]
[Source "ChessBase"]
[SourceQuality "1"]
[WhiteTeam "Streda"]
[BlackTeam "Slovan"]
[TimeControl "40/5400+30:1800+30"]

1. e4 {[%emt 0:00:00]} d5 {[%emt 0:00:00]} 2. exd5 {[%emt 0:00:00]} Qxd5 {[%emt 0:00:00]} 3. d4 {[%emt 0:00:07]} Nf6 {[%emt 0:01:37]} 4. Nc3 {[%emt 0:00:57]} Qd8 {[%emt 0:00:29]} 5. Bf4 {[%emt 0:07:41]} c6 {[%emt 0:06:59]} 6. Nf3 {[%emt 0:06:36]} Bg4 {[%emt 0:01:40]} 7. Be2 {[%emt 0:04:14]} e6 {[%emt 0:00:27]} 8. h3 {[%emt 0:00:44]} Bxf3 {[%emt 0:00:09]} 9. Bxf3 {[%emt 0:00:18]} Bb4 {[%emt 0:06:03]} 10. O-O {[%emt 0:00:36]} O-O {[%emt 0:01:15]} 11. a3 {[%emt 0:01:57]} Bd6 {[%emt 0:01:17]} 12. Bg5 {[%emt 0:02:24]} Nbd7 {[%emt 0:01:05]} 13. Ne4 {[%emt 0:01:08]} Be7 {[%emt 0:00:19]} 14. Nxf6+ {[%emt 0:02:38]} Bxf6 {[%emt 0:02:22]} 15. Be3 {[%emt 0:01:20]} Nb6 {[%emt 0:00:29]} 16. Qd3 {[%emt 0:02:23]} Rc8 {[%emt 0:15:31]} 17. Rad1 {[%emt 0:07:55]} Nd5 {[%emt 0:11:13]} 18. Bc1 {[%emt 0:09:13]} Qc7 {[%emt 0:07:38]} 19. Be4 {[%emt 0:04:23]} g6 {[%emt 0:01:05]} 20. Qf3 {[%emt 0:00:13]} Bg7 {[%emt 0:01:18]} 21. c3 {[%emt 0:00:30]} Rfd8 {[%emt 0:01:52]} 22. g3 {[%emt 0:03:20]} Rd7 {[%emt 0:03:52]} 23. h4 {[%emt 0:07:33]} Nf6 {[%emt 0:02:13]} 24. Bc2 {[%emt 0:01:09]} Re8 {[%emt 0:07:21]} 25. Bg5 {[%emt 0:01:26]} Nd5 {[%emt 0:00:08]} 26. h5 {[%emt 0:00:47]} c5 {[%emt 0:05:36]} 27. Ba4 {[%emt 0:01:40]} cxd4 {[%emt 0:00:31]} 28. cxd4 {[%emt 0:02:27]} a6 {[%emt 0:00:18]} 29. Bxd7 {[%emt 0:00:05]} Qxd7 {[%emt 0:00:03]} 30. Rfe1 {[%emt 0:08:15]} Rc8 {[%emt 0:01:22]} 31. h6 {[%emt 0:01:31]} Bf8 {[%emt 0:00:40]} 32. Rc1 {[%emt 0:00:45]} Re8 {[%emt 0:00:08]} 33. Re2 {[%emt 0:01:50]} Bd6 {[%emt 0:03:44]} 34. Rec2 {[%emt 0:04:42]} f6 {[%emt 0:06:09]} 35. Bd2 {[%emt 0:00:40]} Bb8 {[%emt 0:00:32]} 36. Bb4 {[%emt 0:08:38]} Ba7 {[%emt 0:02:52]} 37. Bc5 {[%emt 0:01:00]} Bb8 {[%emt 0:00:05]} 38. Bb4 {[%emt 0:02:35]} Kf7 {[%emt 0:00:32]} 39. Qd3 {[%emt 0:01:14]} f5 {[%emt 0:01:12]} 40. Rc4 {[%emt 0:02:33]} g5 {[%emt 0:00:18]} 41. Qc2 {[%emt 0:31:41]} Ba7 {[%emt 0:31:06]} 42. Qe2 {[%emt 0:00:00]} Kg6 {[%emt 0:00:00]} 43. Qe5 {[%emt 0:00:00]} Kxh6 {[%emt 0:00:00]} 44. Kg2 {[%emt 0:00:00]} Kg6 {[%emt 0:00:00]} 45. Bd6 {[%emt 0:00:00]} Bb6 {[%emt 0:00:00]} 46. Bb4 {[%emt 0:00:00]} a5 {[%emt 0:00:00]} 47. Qd6 {[%emt 0:00:00]} Qf7 {[%emt 0:00:00]} 48. Bd2 {[%emt 0:00:00]} Rd8 {[%emt 0:00:00]} 49. Qe5 {[%emt 0:00:00]} Qd7 {[%emt 0:00:00]} 50. g4 {[%emt 0:01:15]} Nf6 {[%emt 0:00:00]} 51. f3 {[%emt 0:03:23]} Bxd4 {[%emt 0:00:00]} 52. Qxa5 {[%emt 0:00:01]} b6 {[%emt 0:00:00]} 53. Qa4 {[%emt 0:01:51]} b5 {[%emt 0:00:00]} 54. Rxd4 {[%emt 0:00:05]} bxa4 {[%emt 0:00:00]} 55. Rxd7 {[%emt 0:00:05]} Rxd7 {[%emt 0:00:00]} 56. gxf5+ {[%emt 0:00:02]} exf5 {[%emt 0:00:00]} 57. Bb4 {[%emt 0:00:07]} Nd5 {[%emt 0:01:20]} 58. Rc6+ {[%emt 0:00:07]} Kh5 {[%emt 0:03:23]} 59. Bf8 {[%emt 0:00:56]} Nf4+ {[%emt 0:00:35]} 60. Kg3 {[%emt 0:00:13]} Ng6 {[%emt 0:00:24]} 61. Bb4 {[%emt 0:00:17]} Ne5 {[%emt 0:02:20]} 62. Re6 {[%emt 0:02:07]} f4+ {[%emt 0:01:40]} 63. Kg2 {[%emt 0:00:13]} Nd3 {[%emt 0:02:12]} 64. Bc3 {[%emt 0:01:01]} Rb7 {[%emt 0:02:23]} 65. Re2 {[%emt 0:00:02]} Rb6 {[%emt 0:01:17]} 66. Rd2 {[%emt 0:00:26]} Rd6 {[%emt 0:00:20]} 67. Re2 {[%emt 0:00:16]} Kg6 {[%emt 0:00:34]} 68. Re4 {[%emt 0:00:30]} Rc6 {[%emt 0:01:50]} 69. Re2 {[%emt 0:00:41]} h5 {[%emt 0:00:12]} 70. Kh3 {[%emt 0:01:21]} Kf5 {[%emt 0:00:32]} 71. Kg2 {[%emt 0:00:44]} Re6 {[%emt 0:00:40]} 72. Rd2 {[%emt 0:00:32]} Rd6 {[%emt 0:00:37]} 73. Re2 {[%emt 0:00:14]} Rd5 {[%emt 0:01:09]} 74. Re8 {[%emt 0:00:27]} Nxb2 {[%emt 0:01:02]} 75. Rf8+ {[%emt 0:00:01]} Ke6 {[%emt 0:00:29]} 76. Rf6+ {[%emt 0:00:14]} Kd7 {[%emt 0:00:50]} 77. Bxb2 {[%emt 0:00:03]} Rd2+ {[%emt 0:00:08]} 78. Kh3 {[%emt 0:00:03]} Rxb2 {[%emt 0:00:21]} 79. Rd6+ {[%emt 0:00:02]} Kc7 {[%emt 0:00:40]} 80. Rc6+ {[%emt 0:00:04]} Kb7 {[%emt 0:00:28]} 81. Rc7+ {[%emt 0:00:03]} Ka8 {[%emt 0:00:39]} 82. Ra7+ {[%emt 0:00:47]} Kb8 {[%emt 0:00:03]} 83. Ra5 {[%emt 0:02:21]} Rb3 {[%emt 0:00:21]} 84. Kg2 {[%emt 0:00:27]} g4 {[%emt 0:00:58]} 85. fxg4 {[%emt 0:00:25]} hxg4 {[%emt 0:00:48]} 86. Rxa4 {[%emt 0:00:19]} Rg3+ {[%emt 0:00:35]} 87. Kf2 {[%emt 0:00:44]} Rf3+ {[%emt 0:00:07]} 88. Kg2 {[%emt 0:00:05]} Kb7 {[%emt 0:00:04]} 89. Rc4 {[%emt 0:00:19]} Ka6 {[%emt 0:00:27]} 90. a4 {[%emt 0:00:07]} Kb6 {[%emt 0:00:09]} 91. Re4 {[%emt 0:02:15]} Kc5 {[%emt 0:01:13]} 92. a5 {[%emt 0:00:01]} Kc6 {[%emt 0:02:02]} 93. a6 {[%emt 0:00:42]} Kb6 {[%emt 0:00:12]} 94. Re6+ {[%emt 0:00:05]} Ka7 {[%emt 0:00:11]} 95. Rg6 {[%emt 0:00:14]} Rg3+ {[%emt 0:00:09]} 96. Kf2 {[%emt 0:00:06]} Kb8 {[%emt 0:00:37]} 97. Rg7 {[%emt 0:00:24]} 1/2-1/2

[Event "SVK Extraliga 2019-20"]
[Site "Slovakia"]
[Date "2020.01.19"]
[Round "6.7"]
[White "Fiacan, Robert"]
[Black "Danada, Tomas"]
[Result "0-1"]
[ECO "B23"]
[WhiteElo "2283"]
[BlackElo "2277"]
[Annotator "ChessBase"]
[PlyCount "88"]
[EventDate "2019.10.19"]
[EventType "team-tourn"]
[EventCountry "SVK"]
[SourceTitle "playchess.com"]
[Source "ChessBase"]
[SourceQuality "1"]
[WhiteTeam "Snina"]
[BlackTeam "Prakovce"]
[TimeControl "40/5400+30:1800+30"]

1. e4 {[%emt 0:00:00]} c5 {[%emt 0:00:37]} 2. Nc3 {[%emt 0:00:11]} e6 {[%emt 0:00:46]} 3. f4 {[%emt 0:02:59]} a6 {[%emt 0:01:42]} 4. Nf3 {[%emt 0:02:17]} b5 {[%emt 0:04:09]} 5. g3 {[%emt 0:01:03]} Bb7 {[%emt 0:00:13]} 6. d3 {[%emt 0:00:13]} d5 {[%emt 0:00:38]} 7. e5 {[%emt 0:08:45]} Nh6 {[%emt 0:01:07]} 8. d4 {[%emt 0:04:47]} Nc6 {[%emt 0:00:57]} 9. Ne2 {[%emt 0:01:14]} Nf5 {[%emt 0:00:52]} 10. c3 {[%emt 0:03:06]} h5 {[%emt 0:04:33]} 11. Bh3 {[%emt 0:09:24]} g6 {[%emt 0:01:14]} 12. O-O {[%emt 0:01:04]} Be7 {[%emt 0:01:09]} 13. Kh1 {[%emt 0:10:37]} a5 {[%emt 0:02:42]} 14. a4 {[%emt 0:13:50]} b4 {[%emt 0:00:59]} 15. dxc5 {[%emt 0:03:33]} Bxc5 {[%emt 0:03:28]} 16. Ned4 {[%emt 0:05:03]} Ncxd4 {[%emt 0:03:01]} 17. cxd4 {[%emt 0:03:28]} Be7 {[%emt 0:00:27]} 18. Re1 {[%emt 0:11:11]} Ba6 {[%emt 0:01:16]} 19. Be3 {[%emt 0:01:56]} Rc8 {[%emt 0:01:22]} 20. Bf2 {[%emt 0:02:25]} Kd7 {[%emt 0:10:48]} 21. Nd2 {[%emt 0:02:54]} Qc7 {[%emt 0:05:24]} 22. Rc1 {[%emt 0:04:21]} Qxc1 {[%emt 0:00:32]} 23. Qxc1 {[%emt 0:00:07]} Rxc1 {[%emt 0:00:03]} 24. Rxc1 {[%emt 0:00:07]} Rc8 {[%emt 0:01:08]} 25. Rxc8 {[%emt 0:00:58]} Kxc8 {[%emt 0:06:02]} 26. Bf1 {[%emt 0:01:02]} Bxf1 {[%emt 0:00:57]} 27. Nxf1 {[%emt 0:01:06]} g5 {[%emt 0:05:44]} 28. Nd2 {[%emt 0:02:32]} g4 {[%emt 0:04:44]} 29. Nb3 {[%emt 0:00:28]} Bd8 {[%emt 0:00:08]} 30. Kg2 {[%emt 0:01:08]} Bb6 {[%emt 0:01:30]} 31. h3 {[%emt 0:00:45]} Kd7 {[%emt 0:00:38]} 32. hxg4 {[%emt 0:00:06]} hxg4 {[%emt 0:00:04]} 33. Kf1 {[%emt 0:00:16]} Ke8 {[%emt 0:01:54]} 34. Ke2 {[%emt 0:00:10]} Kf8 {[%emt 0:00:24]} 35. Kd3 {[%emt 0:00:25]} Kg7 {[%emt 0:00:14]} 36. Nc5 {[%emt 0:02:31]} Bxc5 {[%emt 0:01:05]} 37. dxc5 {[%emt 0:00:06]} Ne7 {[%emt 0:00:03]} 38. b3 {[%emt 0:01:33]} Nc6 {[%emt 0:03:50]} 39. Bd4 {[%emt 0:00:12]} Kf8 {[%emt 0:00:33]} 40. Ke3 {[%emt 0:00:46]} Ke7 {[%emt 0:00:52]} 41. Bb2 {[%emt 0:03:07]} Kd7 {[%emt 0:00:00]} 42. Kd2 {[%emt 0:07:06]} Nb8 {[%emt 0:04:02]} 43. Ke3 {[%emt 0:03:24]} Na6 {[%emt 0:01:14]} 44. Bd4 {[%emt 0:00:18]} Kc6 {[%emt 0:00:10]} 0-1